bitfinex-derivatives/quotes_SOLF0:USTF0_20251219
["timestamp","ask_amount","ask_price","bid_price","bid_amount"]
[1766168049261,47.68,124.05,123.96,23.69351582]
[1766168049668,0.05585677,124.02,123.99,0.05405319]
[1766168063080,20.60585677,124.02,123.99,0.00405319]
[1766168063667,20.60585677,124.02,123.94,20.66]
[1766168063872,20.55,124.02,123.94,20.66]
[1766168064680,0.05725669,123.99,123.97,0.05365062]
[1766168070079,20.55,124.02,123.97,0.05365062]
[1766168070278,20.55,124.05,123.97,133.70085062]
[1766168070483,20.55,124.05,123.99,20.66]
[1766168070782,20.55,124.05,124.0,7.2619]
[1766168071176,0.06143036,124.04,124.01,0.0584453]
[1766168076587,0.06143036,124.04,124.01,7.3197453]
[1766168077987,0.06143036,124.04,124.01,0.0584453]
[1766168081382,0.06143036,124.04,124.01,27.3997453]
[1766168081588,20.86,124.07,124.01,20.1384453]
[1766168081981,20.86,124.07,124.02,7.2603]
[1766168082289,20.86,124.07,124.01,20.1384453]
[1766168082489,0.05675733,124.05,124.01,20.1384453]
[1766168082878,0.05675733,124.05,124.01,27.3997453]
[1766168086393,0.05675733,124.05,124.02,7.2607]
[1766168088595,0.05675733,124.05,124.02,27.3407]
[1766168088783,68.52,124.09,124.03,27.3402]
[1766168089900,0.0544529,124.07,124.05,0.05638772]
[1766168096002,20.86,124.1,124.05,20.13638772]
[1766168096196,20.86,124.1,124.05,20.08]
[1766168096599,20.86,124.1,124.04,7.2596]
[1766168097002,0.06072006,124.08,124.06,0.06106804]
[1766168098101,20.86,124.1,124.06,0.06106804]
[1766168098308,20.86,124.12,124.06,27.39936804]
[1766168099109,0.05652916,124.1,124.06,27.39936804]
[1766168100208,47.64,124.13,124.07,27.3377]
[1766168100509,29.44960105,124.14,124.08,20.08]
[1766168100510,22.19530105,124.14,124.08,20.08]
[1766168100703,20.86,124.12,124.04,20.08]
[1766168101310,0.05330399,124.09,124.07,0.05764078]
[1766168102707,20.86,124.08,124.0,20.08]
[1766168102920,20.86,124.1,124.02,20.08]
[1766168103600,0.06112986,124.07,124.05,0.06156258]
[1766168104915,0.06112986,124.07,124.02,20.08]
[1766168105915,0.06112986,124.07,124.03,0.0606847]
[1766168106118,0.06112986,124.07,124.03,7.3206847]
[1766168108014,0.06112986,124.07,124.03,0.0606847]
[1766168109024,0.06112986,124.07,124.03,7.3207847]
[1766168109717,0.06112986,124.07,124.03,26.6607847]
[1766168110817,0.06112986,124.07,124.03,19.4006847]
[1766168118627,0.06112986,124.07,124.03,26.6607847]
[1766168119330,0.00112986,124.07,124.04,26.4696]
[1766168121622,0.00112986,124.07,124.03,0.0606847]
[1766168122330,0.00112986,124.07,124.03,19.2706847]
[1766168125530,0.00112986,124.07,124.03,26.5308847]
[1766168125735,24.21891801,124.13,124.04,19.21]
[1766168125937,47.64,124.14,124.06,19.21]
[1766168126133,47.64,124.14,124.07,19.21]
[1766168126726,0.05351371,124.12,124.09,0.05773947]
[1766168131835,0.05351371,124.12,124.09,19.26773947]
[1766168134536,0.00351371,124.12,124.09,26.52433947]
[1766168134846,20.32,124.2,124.12,20.7]
[1766168135047,20.32,124.2,124.13,27.9542]
[1766168135532,20.32,124.2,124.14,20.7]
[1766168135841,3.39891801,124.21,124.16,0.06024978]
[1766168135842,0.00284406,124.18,124.16,0.06024978]
[1766168138732,20.32284406,124.18,124.16,0.00024978]
[1766168139728,20.32284406,124.18,124.11,20.7]
[1766168139932,20.32,124.18,124.11,20.7]
[1766168140734,0.0568148,124.16,124.13,0.05821429]
[1766168141335,20.3768148,124.16,124.09,27.9566]
[1766168142235,20.3768148,124.16,124.11,0.05145438]
[1766168142940,0.0568148,124.16,124.11,20.75145438]
[1766168144636,0.0568148,124.16,124.11,28.00685438]
[1766168144837,0.0568148,124.16,124.12,20.7]
[1766168147147,23.71891801,124.21,124.13,20.7]
[1766168147946,23.71891801,124.21,124.14,20.7]
[1766168148146,0.06052555,124.19,124.16,0.05795763]
[1766168154249,3.45944356,124.19,124.16,0.05795763]
[1766168154939,0.06052555,124.19,124.16,0.05795763]
[1766168161058,23.77944356,124.19,124.16,0.05795763]
[1766168161561,20.38052555,124.19,124.16,0.05795763]
[1766168161761,0.06052555,124.19,124.16,0.05795763]
[1766168167759,71.3955392,124.23,124.17,19.96]
[1766168167760,66.82,124.23,124.17,19.96]
[1766168168155,3.39260641,124.22,124.17,19.96]
[1766168168868,0.06004197,124.21,124.18,0.06097496]
[1766168169656,19.28004197,124.21,124.15,19.96]
[1766168170258,0.06004197,124.21,124.15,19.96]
[1766168170656,0.06004197,124.21,124.17,0.05303891]
[1766168171366,0.06004197,124.21,124.17,20.01303891]
[1766168173567,22.67264838,124.21,124.17,0.05303891]
[1766168173762,19.22,124.32,124.2,112.7803]
[1766168173953,19.22,124.32,124.24,112.7409]
[1766168174154,19.22,124.32,124.25,112.7364]
[1766168174466,22.61260641,124.35,124.26,116.12110641]
[1766168174667,22.61260641,124.35,124.25,112.7364]
[1766168174966,0.05551686,124.32,124.29,0.0619753]
[1766168175957,22.61260641,124.41,124.3,116.08140641]
[1766168176162,22.61260641,124.41,124.31,160.2609]
[1766168176371,22.61260641,124.41,124.32,112.6712]
[1766168176570,19.22,124.41,124.34,112.6516]
[1766168176761,47.58,124.45,124.36,112.6358]
[1766168176762,19.22,124.44,124.36,112.6358]
[1766168176964,0.06076487,124.41,124.39,0.05801058]
[1766168177465,160.1074,124.49,124.39,0.05801058]
[1766168177466,19.22,124.48,124.39,0.05801058]
[1766168177666,3.39260641,124.47,124.37,112.6249]
[1766168177870,3.39260641,124.46,124.37,112.6249]
[1766168178083,19.22,124.47,124.38,112.6179]
[1766168178265,19.22,124.47,124.39,112.6089]
[1766168178576,0.05284199,124.44,124.42,0.05235343]
[1766168178877,0.05264996,124.44,124.42,0.05620372]
[1766168179074,19.69,124.5,124.42,0.05620372]
[1766168179277,19.69,124.5,124.42,112.5805]
[1766168179576,47.58,124.52,124.42,112.5805]
[1766168179577,47.58,124.52,124.44,112.5634]
[1766168179765,19.69,124.53,124.45,47.56]
[1766168180162,19.69,124.53,124.48,0.05627701]
[1766168180562,19.69,124.56,124.48,0.05627701]
[1766168180781,19.69,124.56,124.51,0.05265667]
[1766168180966,19.69,124.56,124.51,0.00265667]
[1766168181270,19.69,124.56,124.42,112.5771]
[1766168181271,19.69,124.55,124.42,112.5771]
[1766168181482,19.69,124.55,124.45,47.54]
[1766168181673,19.69,124.53,124.41,119.8254]
[1766168181878,19.69,124.53,124.42,47.54]
[1766168182171,19.74233349,124.49,124.38,119.854]
[1766168182377,19.69,124.49,124.39,47.54]
[1766168182782,19.69,124.48,124.39,47.54]
[1766168183377,0.0568349,124.45,124.42,0.05449783]
[1766168184572,19.7468349,124.45,124.34,7.2416]
[1766168184781,19.69,124.45,124.36,47.52]
[1766168185373,19.69,124.45,124.35,47.52]
[1766168185573,0.05334709,124.41,124.39,0.05651567]
[1766168186684,0.05334709,124.41,124.34,47.52]
[1766168187086,0.05334709,124.41,124.33,47.52]
[1766168187087,19.74334709,124.41,124.33,47.52]
[1766168187377,15.66661149,124.41,124.34,8.35825718]
[1766168187581,0.0554404,124.39,124.36,0.06138006]
[1766168187776,0.0554404,124.39,124.33,47.52]
[1766168188382,15.66661149,124.41,124.33,47.52]
[1766168189285,0.05664909,124.38,124.36,0.05125519]
[1766168194186,0.05664909,124.38,124.36,0.00125519]
[1766168194388,21.47664909,124.38,124.28,7.2454]
[1766168194583,21.42,124.38,124.29,47.52]
[1766168194983,21.42,124.38,124.29,54.7647]
[1766168195487,0.05788626,124.35,124.32,0.05379967]
[1766168196387,21.42,124.41,124.32,112.72519967]
[1766168196592,21.42,124.41,124.32,112.6714]
[1766168197377,21.42,124.41,124.35,0.05298823]
[1766168197378,0.05223778,124.38,124.35,0.05298823]
[1766168198985,21.47223778,124.38,124.35,0.00298823]
[1766168199485,0.05223778,124.38,124.35,0.00298823]
[1766168199883,0.05223778,124.38,124.36,8.10934022]
[1766168200084,0.05223778,124.38,124.35,0.00298823]
[1766168201893,21.47223778,124.38,124.28,47.52]
[1766168202095,21.42,124.38,124.28,47.52]
[1766168202688,0.05251155,124.34,124.32,0.00150913]
[1766168202994,21.47251155,124.34,124.28,47.52]
[1766168203186,0.05251155,124.34,124.28,47.52]
[1766168203892,0.05251155,124.34,124.3,0.06024181]
[1766168207597,21.47251155,124.34,124.3,0.06024181]
[1766168208596,21.47251155,124.34,124.3,0.00024181]
[1766168208897,21.47251155,124.34,124.25,7.2471]
[1766168209095,21.42,124.34,124.25,7.2471]
[1766168209997,0.05811648,124.31,124.28,0.05163634]
[1766168210189,21.42,124.34,124.28,0.00163634]
[1766168210393,21.42,124.34,124.22,160.2829]
[1766168211295,28.6629,124.33,124.24,7.2478]
[1766168211489,0.05883695,124.29,124.27,0.05770283]
[1766168211690,21.42,124.32,124.27,0.05770283]
[1766168212091,21.42,124.32,124.28,7.97936118]
[1766168212290,21.42,124.32,124.29,7.97936118]
[1766168212596,21.4760735,124.32,124.27,0.05770283]
[1766168215798,21.42,124.31,124.24,7.2477]
[1766168215990,21.42,124.31,124.22,47.52]
[1766168216186,21.42,124.31,124.22,54.7689]
[1766168216595,21.42,124.3,124.22,54.7689]
[1766168216799,0.05094516,124.27,124.25,0.0514917]
[1766168222794,0.05094516,124.27,124.16,1.91228668]
[1766168222795,21.47094516,124.27,124.16,1.91228668]
[1766168222998,21.42,124.27,124.17,160.3422]
[1766168223701,21.42,124.27,124.21,0.05853753]
[1766168224504,21.42,124.27,124.22,7.76109768]
[1766168224808,0.05673308,124.26,124.23,7.76109768]
[1766168225008,0.05673308,124.26,124.24,7.76109768]
[1766168225208,0.05673308,124.26,124.25,9.768e-05]
[1766168225703,7.2448,124.3,124.25,9.768e-05]
[1766168225909,22.45,124.31,124.23,7.2485]
[1766168226112,22.45,124.31,124.2,112.7811]
[1766168226306,22.45,124.31,124.19,112.79]
[1766168226700,0.06152194,124.26,124.24,0.05307917]
[1766168226898,22.45,124.31,124.24,0.05307917]
[1766168227099,0.0571233,124.29,124.24,0.05307917]
[1766168227708,22.5071233,124.29,124.24,0.05307917]
[1766168227907,22.5071233,124.29,124.24,0.00307917]
[1766168229016,0.0571233,124.29,124.24,0.00307917]
[1766168230815,22.5071233,124.29,124.24,0.00307917]
[1766168232730,7.2457,124.28,124.24,0.00307917]
[1766168232934,29.6957,124.28,124.24,0.00307917]
[1766168234619,29.6964,124.27,124.24,0.00307917]
[1766168234819,22.45,124.26,124.24,0.00307917]
[1766168235029,22.50301117,124.26,124.24,0.00307917]
[1766168235230,22.50301117,124.26,124.18,47.54]
[1766168235429,22.45,124.26,124.18,47.54]
[1766168235933,22.45,124.25,124.15,112.8265]
[1766168236133,0.00072173,124.21,124.19,0.06168117]
[1766168237128,0.00072173,124.21,124.2,7.61411478]
[1766168237525,0.00072173,124.21,124.16,47.54]
[1766168237726,0.00072173,124.21,124.16,50.04]
[1766168238025,0.00072173,124.21,124.17,2.5]
[1766168238735,0.00072173,124.21,124.18,0.05465513]
[1766168238926,0.00072173,124.21,124.18,0.00465513]
[1766168243329,23.86072173,124.21,124.18,0.00465513]
[1766168243525,23.86072173,124.21,124.13,3.09]
[1766168243730,23.86,124.21,124.13,3.09]
[1766168244428,0.05990035,124.18,124.16,0.06077902]
[1766168249435,0.05990035,124.18,124.11,12.39697153]
[1766168249734,23.91990035,124.18,124.11,3.74]
[1766168250130,23.86,124.17,124.11,3.74]
[1766168250634,0.05650559,124.15,124.13,0.05384393]
[1766168258046,24.06650559,124.15,124.09,52.01]
[1766168258246,24.06650559,124.15,124.07,55.47294265]
[1766168258443,24.01,124.15,124.07,55.47294265]
[1766168258841,24.01,124.15,124.07,62.73074265]
[1766168259145,0.00115129,124.12,124.1,0.05675654]
[1766168259343,0.00115129,124.12,124.1,4.63675654]
[1766168260146,24.01,124.17,124.1,11.89285654]
[1766168261044,0.06054806,124.15,124.1,11.89285654]
[1766168261850,24.07054806,124.15,124.1,0.05675654]
[1766168262057,0.06054806,124.15,124.1,4.77675654]
[1766168262340,27.40294265,124.23,124.14,4.73]
[1766168262547,24.01,124.2,124.12,4.73]
[1766168263242,31.2605,124.2,124.12,4.73]
[1766168263446,27.46150132,124.17,124.15,0.00205434]
[1766168263745,27.46150132,124.17,124.09,4.85]
[1766168263951,27.40294265,124.17,124.09,4.85]
[1766168264444,24.01,124.15,124.09,4.85]
[1766168264647,0.05909376,124.13,124.11,0.05242366]
[1766168265350,0.05909376,124.13,124.11,0.00242366]
[1766168265554,24.06909376,124.13,124.07,47.58]
[1766168266448,24.06909376,124.13,124.09,0.05968314]
[1766168266649,31.32379376,124.13,124.09,0.05968314]
[1766168269745,0.05909376,124.13,124.09,0.05968314]
[1766168270051,24.06909376,124.13,124.09,0.05968314]
[1766168270246,7.2557,124.11,124.05,5.29]
[1766168270750,24.01,124.1,124.02,8.80294265]
[1766168270947,24.01,124.09,124.02,5.41]
[1766168271146,0.05613239,124.07,124.04,0.05129663]
[1766168272957,0.05613239,124.07,124.0,6.94280157]
[1766168273157,0.05613239,124.07,124.01,5.54]
[1766168273359,0.05613239,124.07,124.02,5.6]
[1766168273749,0.05613239,124.07,124.03,0.05463702]
[1766168274243,34.71727504,124.07,124.0,1.40280157]
[1766168274445,24.01,124.06,123.98,5.6]
[1766168274749,27.40294265,124.05,123.98,5.6]
[1766168275652,0.05110754,124.03,124.0,0.05882682]
[1766168279549,24.01,124.07,124.0,6.05882682]
[1766168280658,0.05762387,124.05,124.0,6.05882682]
[1766168281354,27.40294265,124.09,124.01,6.0]
[1766168281541,24.01,124.09,124.01,6.0]
[1766168282056,24.01,124.09,124.01,13.2612]
[1766168282558,24.01,124.09,124.04,0.05779681]
[1766168282946,24.01,124.11,124.04,0.05779681]
[1766168283147,24.01,124.11,124.03,6.0]
[1766168283342,0.06181131,124.08,124.06,0.06137215]
[1766168284853,0.06181131,124.08,124.06,0.00137215]
[1766168287154,24.91181131,124.08,124.01,6.28]
[1766168288056,24.91181131,124.08,124.03,0.05425817]
[1766168288263,0.06181131,124.08,124.03,6.43425817]
[1766168289352,24.91181131,124.08,124.03,0.05425817]
[1766168289552,28.30475396,124.08,124.03,0.00425817]
[1766168290363,32.1082,124.07,124.03,0.00425817]
[1766168290655,24.85,124.06,124.03,0.00425817]
[1766168292964,3.45475396,124.08,124.03,0.00425817]
[1766168292965,28.30475396,124.08,124.03,0.00425817]
[1766168293566,24.91181131,124.08,124.03,0.00425817]
[1766168294671,32.16921131,124.08,124.03,0.00425817]
[1766168295063,24.91181131,124.08,124.03,0.00425817]
[1766168295365,28.30475396,124.08,124.03,0.00425817]
[1766168296362,0.06181131,124.08,124.03,6.82425817]
[1766168296662,0.06181131,124.08,124.03,0.00425817]
[1766168297373,7.31921131,124.08,124.03,0.00425817]
[1766168297673,0.06181131,124.08,124.03,6.91425817]
[1766168299368,0.06181131,124.08,124.03,0.00425817]
[1766168301260,0.06181131,124.08,124.03,7.10425817]
[1766168310369,0.00181131,124.08,124.03,7.10425817]
[1766168310670,0.00181131,124.08,124.03,14.36425817]
[1766168310972,0.00181131,124.08,124.04,7.45]
[1766168311373,0.00181131,124.08,124.04,14.7096]
[1766168311571,26.38,124.12,124.04,7.45]
[1766168312573,0.05371357,124.09,124.07,0.05293488]
[1766168312775,0.05530249,124.09,124.07,0.05293488]
[1766168312975,26.38,124.13,124.07,0.05293488]
[1766168313572,47.62,124.14,124.07,7.56293488]
[1766168313768,47.62,124.14,124.08,7.51]
[1766168313971,0.05260611,124.12,124.1,0.05302368]
[1766168314574,0.00260611,124.12,124.1,0.05302368]
[1766168327187,0.00260611,124.12,124.1,0.00302368]
[1766168327899,26.15260611,124.12,124.05,7.98]
[1766168328791,0.00260611,124.12,124.07,8.01]
[1766168328988,0.06147268,124.11,124.08,0.05684391]
[1766168329593,0.00147268,124.11,124.08,15.36414391]
[1766168329892,26.15,124.18,124.09,7.99]
[1766168330079,26.15,124.18,124.1,7.99]
[1766168330283,26.15,124.18,124.11,15.2453]
[1766168330688,0.05699293,124.16,124.11,15.2453]
[1766168330893,0.05699293,124.16,124.13,0.05110896]
[1766168333297,26.15,124.2,124.13,8.15110896]
[1766168333589,26.15,124.2,124.13,8.1]
[1766168333985,26.15,124.2,124.14,15.3037]
[1766168334388,26.15,124.2,124.16,0.06153787]
[1766168334389,0.05195677,124.18,124.16,0.06153787]
[1766168334997,26.15,124.22,124.16,0.06153787]
[1766168335491,38.70935595,124.22,124.16,0.06153787]
[1766168335699,26.15,124.21,124.16,0.06153787]
[1766168336087,0.05167725,124.2,124.16,0.06153787]
[1766168336395,26.20167725,124.2,124.16,0.06153787]
[1766168336890,0.05167725,124.2,124.16,8.14153787]
[1766168337087,26.15,124.25,124.18,8.03]
[1766168337288,26.15,124.25,124.16,8.03]
[1766168337893,26.15,124.23,124.14,8.06]
[1766168338095,0.05330599,124.2,124.17,0.05805491]
[1766168340591,31.51336194,124.2,124.11,8.2]
[1766168340787,31.46005595,124.2,124.11,8.2]
[1766168340998,26.15,124.2,124.14,8.2]
[1766168341604,0.05178481,124.18,124.16,0.05545658]
[1766168345299,0.05178481,124.18,124.12,15.6147]
[1766168345504,25.42,124.19,124.1,8.42]
[1766168346300,0.05797236,124.16,124.13,0.06091557]
[1766168346590,25.47797236,124.16,124.13,0.00091557]
[1766168347298,25.47797236,124.16,124.1,8.42]
[1766168347703,0.05797236,124.16,124.12,8.53]
[1766168348296,25.42,124.19,124.13,0.05702783]
[1766168348895,25.42,124.19,124.13,7.31122783]
[1766168349297,0.05673289,124.17,124.13,7.31122783]
[1766168349497,25.47673289,124.17,124.13,0.05702783]
[1766168349890,0.05673289,124.17,124.13,0.05702783]
[1766168353110,0.05673289,124.17,124.13,8.64702783]
[1766168353311,25.42,124.2,124.13,8.64702783]
[1766168354410,0.05129306,124.18,124.13,8.64702783]
[1766168354609,0.05129306,124.18,124.14,7.2537]
[1766168354909,0.05129306,124.18,124.14,8.58]
[1766168356214,25.42,124.22,124.14,8.58]
[1766168356508,47.6,124.23,124.15,8.57]
[1766168356906,47.6,124.23,124.17,7.252]
[1766168357302,0.05261684,124.21,124.19,0.06152603]
[1766168358716,0.00261684,124.21,124.19,0.06152603]
[1766168359516,25.42,124.24,124.19,7.31232603]
[1766168360608,0.05078745,124.23,124.19,15.95232603]
[1766168360804,27.65,124.26,124.2,15.94934043]
[1766168361914,0.0574128,124.24,124.2,15.94934043]
[1766168363309,27.7074128,124.24,124.2,0.05904043]
[1766168364018,0.0574128,124.24,124.2,0.05904043]
[1766168366924,0.0574128,124.24,124.2,16.01924043]
[1766168368118,47.6,124.28,124.22,8.73]
[1766168368513,31.03967982,124.3,124.22,8.73]
[1766168368723,31.03967982,124.3,124.19,116.17677982]
[1766168368724,31.03967982,124.3,124.2,8.75]
[1766168369113,0.05632011,124.26,124.24,0.06136042]
[1766168369314,0.05632011,124.26,124.2,8.75]
[1766168370220,0.05632011,124.26,124.22,0.05162392]
[1766168370721,27.70632011,124.26,124.22,0.05162392]
[1766168371523,31.09599993,124.26,124.22,0.00162392]
[1766168372815,27.70632011,124.26,124.22,0.00162392]
[1766168373216,34.95332011,124.26,124.22,0.00162392]
[1766168373516,27.65,124.25,124.22,0.00162392]
[1766168374620,0.05632011,124.26,124.22,0.00162392]
[1766168376819,0.05632011,124.26,124.22,9.02162392]
[1766168377628,0.05632011,124.26,124.22,16.27072392]
[1766168378634,0.05632011,124.26,124.22,0.00162392]
[1766168379334,25.94632011,124.26,124.22,0.00162392]
[1766168380334,0.05632011,124.26,124.22,7.25062392]
[1766168382039,29.27813175,124.3,124.23,16.2984]
[1766168382922,29.27813175,124.3,124.21,16.3093]
[1766168382923,25.89,124.29,124.21,16.3093]
[1766168383125,0.05095551,124.26,124.24,0.05797105]
[1766168384334,25.94095551,124.26,124.2,9.15]
[1766168384525,0.05095551,124.26,124.22,7.249]
[1766168385122,0.05095551,124.26,124.23,7.2485]
[1766168385327,0.05095551,124.26,124.23,7.30151755]
[1766168386531,0.05095551,124.26,124.23,0.05301755]
[1766168388836,25.94095551,124.26,124.23,0.05301755]
[1766168389134,25.89,124.3,124.23,9.26301755]
[1766168389331,25.89,124.3,124.24,9.16]
[1766168390330,0.05179741,124.28,124.26,0.05407498]
[1766168391435,25.89,124.33,124.26,16.46077498]
[1766168391636,25.89,124.33,124.26,9.21407498]
[1766168392028,25.89,124.33,124.27,9.16]
[1766168392548,47.56,124.35,124.29,0.05421854]
[1766168392549,73.45,124.35,124.29,0.05421854]
[1766168392840,25.89,124.35,124.29,0.05421854]
[1766168393442,0.06140702,124.33,124.29,16.41911854]
[1766168393940,0.06140702,124.33,124.3,7.2443]
[1766168394841,25.89,124.37,124.3,16.3843]
[1766168395840,0.05106282,124.35,124.32,0.056504]
[1766168397545,73.45,124.39,124.32,16.419704]
[1766168397936,25.89,124.39,124.33,16.3125]
[1766168398245,25.89,124.41,124.34,9.07]
[1766168398737,73.43,124.44,124.37,9.08]
[1766168398944,25.89,124.41,124.36,47.54]
[1766168399137,29.27813175,124.41,124.31,9.14]
[1766168399445,112.5804,124.43,124.31,9.14]
[1766168399446,25.89,124.39,124.32,9.15]
[1766168399942,0.05928262,124.37,124.34,0.05923738]
[1766168400743,25.89,124.41,124.35,9.11]
[1766168401743,25.89,124.41,124.37,0.05339745]
[1766168401940,29.27813175,124.41,124.37,0.05339745]
[1766168402143,25.89,124.41,124.37,0.05339745]
[1766168403138,25.89,124.39,124.31,7.2436]
[1766168403442,25.89,124.39,124.32,47.54]
[1766168403642,7.2383,124.41,124.3,121.8646]
[1766168403643,25.89,124.38,124.3,9.18]
[1766168403839,29.27813175,124.38,124.31,47.52]
[1766168404240,0.05499256,124.36,124.33,0.05693022]
[1766168405440,27.75499256,124.36,124.29,7.2448]
[1766168405745,0.05499256,124.36,124.3,9.26]
[1766168406137,0.05499256,124.36,124.31,7.2435]
[1766168406439,0.05499256,124.36,124.32,0.0517976]
[1766168409749,27.7,124.4,124.33,9.3]
[1766168410345,27.7,124.42,124.34,9.25]
[1766168410950,0.05389834,124.39,124.37,0.05906839]
[1766168411449,0.05389834,124.39,124.33,54.7624]
[1766168411450,27.75389834,124.39,124.33,54.7624]
[1766168411948,27.75389834,124.39,124.33,7.2424]
[1766168412149,27.75389834,124.39,124.34,7.242]
[1766168412347,27.75389834,124.39,124.35,0.05276388]
[1766168416149,0.05389834,124.39,124.35,7.29406388]
[1766168416446,0.05389834,124.39,124.35,9.44276388]
[1766168417550,0.05389834,124.39,124.36,7.2407]
[1766168418246,27.7,124.42,124.37,7.2403]
[1766168419151,0.0575609,124.41,124.38,7.29063002]
[1766168420646,0.0575609,124.41,124.38,0.05103002]
[1766168421554,0.0575609,124.41,124.38,0.00103002]
[1766168421555,27.5675609,124.41,124.38,0.00103002]
[1766168423755,0.0575609,124.41,124.38,0.00103002]
[1766168427463,27.5675609,124.41,124.38,0.00103002]
[1766168428955,27.5675609,124.41,124.34,7.2418]
[1766168429155,27.51,124.41,124.34,7.2418]
[1766168429853,0.05810986,124.39,124.36,0.05882177]
[1766168433171,0.05810986,124.39,124.36,7.29972177]
[1766168433557,0.05810986,124.39,124.36,0.05882177]
[1766168435667,27.62810986,124.39,124.36,0.05882177]
[1766168435966,27.62810986,124.39,124.33,7.2427]
[1766168436869,27.62810986,124.39,124.35,0.05401053]
[1766168437072,27.62810986,124.39,124.35,0.00401053]
[1766168437574,0.05810986,124.39,124.35,0.00401053]
[1766168439663,0.05810986,124.39,124.35,9.77401053]
[1766168440664,0.05810986,124.39,124.37,7.2403]
[1766168444481,0.05810986,124.39,124.35,54.74511053]
[1766168444678,0.05810986,124.39,124.35,47.50401053]
[1766168444973,27.62810986,124.39,124.35,47.50401053]
[1766168446181,27.62810986,124.39,124.35,0.00401053]
[1766168447781,0.05810986,124.39,124.35,0.00401053]
[1766168447982,0.05810986,124.39,124.35,9.84401053]
[1766168449578,0.05810986,124.39,124.36,7.2408]
[1766168449982,32.85268889,124.43,124.35,0.00401053]
[1766168450184,32.85268889,124.43,124.33,47.5]
[1766168450591,27.57,124.41,124.33,57.3]
[1766168450894,0.05964946,124.38,124.36,0.05878133]
[1766168452097,27.57,124.41,124.36,7.29958133]
[1766168452898,27.57,124.41,124.36,0.05878133]
[1766168453098,0.0614933,124.4,124.36,0.05878133]
[1766168455498,0.0014933,124.4,124.36,9.82878133]
[1766168456706,0.0014933,124.4,124.37,7.2402]
[1766168459508,27.57,124.53,124.42,112.5829]
[1766168459694,27.57,124.53,124.45,112.5562]
[1766168459898,27.57,124.56,124.46,112.546]
[1766168460097,27.57,124.56,124.47,47.5]
[1766168460304,27.57,124.58,124.49,112.52]
[1766168460504,27.57,124.58,124.52,0.06181583]
[1766168460505,0.05191875,124.55,124.52,0.06181583]
[1766168461495,27.57,124.62,124.52,119.78371583]
[1766168461694,27.57,124.62,124.52,119.7219]
[1766168461898,27.57,124.61,124.5,119.742]
[1766168462100,27.57,124.6,124.51,47.5]
[1766168462500,27.62484872,124.57,124.54,0.0042123]
[1766168462711,27.62484872,124.57,124.47,7.2341]
[1766168463011,27.57,124.57,124.47,47.5]
[1766168463710,27.57,124.52,124.51,0.00060465]
[1766168463902,27.57,124.52,124.46,47.48]
[1766168464905,0.05428441,124.5,124.48,0.05994352]
[1766168466510,28.70428441,124.5,124.44,47.48]
[1766168467203,28.65,124.5,124.4,7.2383]
[1766168467413,0.06138896,124.46,124.44,0.0580277]
[1766168468313,0.06138896,124.46,124.4,47.48]
[1766168469209,0.06138896,124.46,124.36,9.10090874]
[1766168469210,28.71138896,124.46,124.36,9.10090874]
[1766168469407,28.65,124.46,124.42,0.00249119]
[1766168470515,28.70807783,124.45,124.42,0.00249119]
[1766168472914,112.5257,124.49,124.42,0.00249119]
[1766168472915,28.65,124.48,124.42,0.00249119]
[1766168474117,0.05637065,124.46,124.42,0.00249119]
[1766168475813,28.70637065,124.46,124.42,0.00249119]
[1766168476815,28.65,124.51,124.43,47.48]
[1766168477421,28.65,124.51,124.44,7.236]
[1766168478014,0.05515633,124.49,124.46,0.05152676]
[1766168486127,28.27515633,124.49,124.46,0.00152676]
[1766168487619,28.27515633,124.49,124.47,0.00229633]
[1766168487620,0.05515633,124.49,124.47,0.00229633]
[1766168487820,0.05515633,124.49,124.46,0.00152676]
[1766168494037,27.65,124.53,124.46,0.00152676]
[1766168494243,27.65,124.53,124.45,47.46]
[1766168494730,27.65,124.53,124.47,7.2345]